[Event "Titled Tuesday Blitz August 17 2021"]
[White "Sovetbekova, Nurai"]
[Black "Tokman, Ariel"]
[WhiteFideId "13801910"]
[BlackFideId "117420"]
[WhiteElo "1516"]
[BlackElo "2345"]
[Result "0-1"]
[Round "09"]
[TimeControl "180+1"]
[Date "2021.08.18"]
[WhiteClock "0:00:28"]
[BlackClock "0:00:07"]

1. d4 {[%clk 0:03:00]}  d5 {[%clk 0:02:57]} 2. c4 {[%clk 0:02:59]}  c6 {[%clk 0:02:58]} 3. Nf3 {[%clk 0:02:59]}  Nf6 {[%clk 0:02:58]} 4. e3 {[%clk 0:03:00]}  Bg4 {[%clk 0:02:55]} 5. Nc3 {[%clk 0:02:58]}  e6 {[%clk 0:02:54]} 6. Qb3 {[%clk 0:02:58]}  Qb6 {[%clk 0:02:54]} 7. h3 {[%clk 0:02:58]}  Bxf3 {[%clk 0:02:42]} 8. gxf3 {[%clk 0:02:59]}  Nbd7 {[%clk 0:02:42]} 9. Bd3 {[%clk 0:02:58]}  Be7 {[%clk 0:02:39]} 10. e4 {[%clk 0:02:57]}  dxe4 {[%clk 0:02:28]} 11. fxe4 {[%clk 0:02:58]}  e5 {[%clk 0:02:29]} 12. Qxb6 {[%clk 0:02:54]}  axb6 {[%clk 0:02:28]} 13. d5 {[%clk 0:02:54]}  Nc5 {[%clk 0:02:16]} 14. Ke2 {[%clk 0:02:51]}  O-O {[%clk 0:01:57]} 15. Rg1 {[%clk 0:02:39]}  g6 {[%clk 0:01:55]} 16. Be3 {[%clk 0:02:32]}  Nxd3 {[%clk 0:01:31]} 17. Kxd3 {[%clk 0:02:26]}  Nd7 {[%clk 0:01:31]} 18. f3 {[%clk 0:01:57]}  Nc5+ {[%clk 0:01:26]} 19. Ke2 {[%clk 0:01:56]}  f5 {[%clk 0:01:20]} 20. exf5 {[%clk 0:01:37]}  Rxf5 {[%clk 0:01:20]} 21. Ne4 {[%clk 0:01:37]}  cxd5 {[%clk 0:01:13]} 22. cxd5 {[%clk 0:01:31]}  Rh5 {[%clk 0:00:11]} 23. Bxc5 {[%clk 0:01:17]}  bxc5 {[%clk 0:00:11]} 24. d6 {[%clk 0:01:17]}  Bd8 {[%clk 0:00:09]} 25. Nxc5 {[%clk 0:01:15]}  Rxh3 {[%clk 0:00:08]} 26. Rg2 {[%clk 0:01:11]}  Kf7 {[%clk 0:00:07]} 27. Nxb7 {[%clk 0:01:10]}  Ke6 {[%clk 0:00:08]} 28. b4 {[%clk 0:01:01]}  Bb6 {[%clk 0:00:06]} 29. Nc5+ {[%clk 0:00:58]}  Kxd6 {[%clk 0:00:04]} 30. Rd1+ {[%clk 0:00:58]}  Kc6 {[%clk 0:00:03]} 31. Rc1 {[%clk 0:00:54]}  Rxa2+ {[%clk 0:00:02]} 32. Ke3 {[%clk 0:00:52]}  Rxg2 {[%clk 0:00:02]} 33. Ke4 {[%clk 0:00:44]}  Bxc5 {[%clk 0:00:02]} 34. Rxc5+ {[%clk 0:00:44]}  Kd6 {[%clk 0:00:02]} 35. Rd5+ {[%clk 0:00:44]}  Kc6 {[%clk 0:00:01]} 36. Rc5+ {[%clk 0:00:42]}  Kb6 {[%clk 0:00:02]} 37. Kxe5 {[%clk 0:00:42]}  Re2+ {[%clk 0:00:02]} 38. Kf4 {[%clk 0:00:42]}  Rf2 {[%clk 0:00:03]} 39. Rc3 {[%clk 0:00:42]}  Rb2 {[%clk 0:00:03]} 40. Kg4 {[%clk 0:00:41]}  Rh5 {[%clk 0:00:04]} 41. Rd3 {[%clk 0:00:40]}  Rxb4+ {[%clk 0:00:03]} 42. Kg3 {[%clk 0:00:40]}  Rbb5 {[%clk 0:00:04]} 43. Rd6+ {[%clk 0:00:40]}  Kc7 {[%clk 0:00:04]} 44. Rf6 {[%clk 0:00:39]}  Rbf5 {[%clk 0:00:05]} 45. Ra6 {[%clk 0:00:38]}  Kd7 {[%clk 0:00:04]} 46. Ra7+ {[%clk 0:00:38]}  Ke6 {[%clk 0:00:05]} 47. Ra6+ {[%clk 0:00:39]}  Kf7 {[%clk 0:00:05]} 48. Ra7+ {[%clk 0:00:39]}  Kf6 {[%clk 0:00:05]} 49. Ra6+ {[%clk 0:00:37]}  Kg7 {[%clk 0:00:05]} 50. Ra7+ {[%clk 0:00:37]}  Rf7 {[%clk 0:00:06]} 51. Ra6 {[%clk 0:00:37]}  Rhf5 {[%clk 0:00:07]} 52. Ra3 {[%clk 0:00:33]}  h5 {[%clk 0:00:07]} 53. Rd3 {[%clk 0:00:31]}  Kh6 {[%clk 0:00:07]} 54. Re3 {[%clk 0:00:30]}  R7f6 {[%clk 0:00:07]} 55. Re8 {[%clk 0:00:29]}  Rxf3+ {[%clk 0:00:07]} 56. Kg2 {[%clk 0:00:29]}  Ra3 {[%clk 0:00:07]} 57. Rh8+ {[%clk 0:00:29]}  Kg5 {[%clk 0:00:07]} 58. Rb8 {[%clk 0:00:30]}  Rff3 {[%clk 0:00:07]} 59. Rb5+ {[%clk 0:00:29]}  Rf5 {[%clk 0:00:08]} 60. Rb2 {[%clk 0:00:29]}  Rc5 {[%clk 0:00:07]} 61. Re2 {[%clk 0:00:29]}  Rac3 {[%clk 0:00:07]} 62. Kg1 {[%clk 0:00:28]}  Rc1+ {[%clk 0:00:07]} 0-1


[Site "https://www.chess.com"]

[Event "Titled Tuesday Blitz August 17 2021"]
[White "Svane, Rasmus"]
[Black "Wagner, Dennis"]
[WhiteFideId "4657101"]
[BlackFideId "24650684"]
[WhiteElo "2669"]
[BlackElo "2355"]
[Result "0-1"]
[Round "09"]
[TimeControl "180+1"]
[Date "2021.08.17"]
[WhiteClock "0:00:03"]
[BlackClock "0:00:10"]

1. Nf3 {[%clk 0:03:00]}  Nf6 {[%clk 0:02:59]} 2. g3 {[%clk 0:03:00]}  g6 {[%clk 0:02:55]} 3. Bg2 {[%clk 0:02:59]}  Bg7 {[%clk 0:02:56]} 4. O-O {[%clk 0:02:59]}  O-O {[%clk 0:02:56]} 5. d4 {[%clk 0:03:00]}  d5 {[%clk 0:02:56]} 6. c3 {[%clk 0:03:00]}  Nbd7 {[%clk 0:02:53]} 7. a4 {[%clk 0:02:59]}  a5 {[%clk 0:02:51]} 8. Re1 {[%clk 0:02:55]}  b6 {[%clk 0:02:50]} 9. Bf4 {[%clk 0:02:47]}  Nh5 {[%clk 0:02:48]} 10. Be3 {[%clk 0:02:41]}  Bb7 {[%clk 0:02:48]} 11. Qc1 {[%clk 0:02:38]}  e5 {[%clk 0:02:46]} 12. dxe5 {[%clk 0:02:35]}  Nxe5 {[%clk 0:02:47]} 13. Nxe5 {[%clk 0:02:35]}  Bxe5 {[%clk 0:02:47]} 14. Nd2 {[%clk 0:02:35]}  Bg7 {[%clk 0:02:43]} 15. Nf3 {[%clk 0:02:35]}  Nf6 {[%clk 0:02:44]} 16. Bh6 {[%clk 0:02:34]}  Qe7 {[%clk 0:02:42]} 17. Bxg7 {[%clk 0:02:33]}  Kxg7 {[%clk 0:02:43]} 18. Qf4 {[%clk 0:02:32]}  Rad8 {[%clk 0:02:39]} 19. Rad1 {[%clk 0:02:32]}  Qd6 {[%clk 0:02:30]} 20. Qd4 {[%clk 0:02:21]}  c5 {[%clk 0:02:26]} 21. Qd2 {[%clk 0:02:20]}  Qc7 {[%clk 0:02:23]} 22. Qc2 {[%clk 0:01:59]}  Rfe8 {[%clk 0:02:23]} 23. e3 {[%clk 0:01:59]}  h6 {[%clk 0:02:22]} 24. Qb3 {[%clk 0:01:55]}  Bc6 {[%clk 0:02:21]} 25. Qa2 {[%clk 0:01:48]}  Ne4 {[%clk 0:02:15]} 26. Nd2 {[%clk 0:01:46]}  Nf6 {[%clk 0:02:09]} 27. Nf3 {[%clk 0:01:38]}  Rd6 {[%clk 0:02:04]} 28. Qa1 {[%clk 0:01:37]}  Qd7 {[%clk 0:02:03]} 29. b3 {[%clk 0:01:36]}  Qf5 {[%clk 0:01:54]} 30. c4 {[%clk 0:01:31]}  d4 {[%clk 0:01:36]} 31. Nh4 {[%clk 0:01:04]}  Qd7 {[%clk 0:01:35]} 32. exd4 {[%clk 0:00:54]}  Rxe1+ {[%clk 0:01:33]} 33. Rxe1 {[%clk 0:00:55]}  cxd4 {[%clk 0:01:27]} 34. Nf3 {[%clk 0:00:50]}  Qb7 {[%clk 0:01:07]} 35. Nh4 {[%clk 0:00:43]}  Bxg2 {[%clk 0:01:04]} 36. Nxg2 {[%clk 0:00:44]}  d3 {[%clk 0:01:02]} 37. Ne3 {[%clk 0:00:41]}  d2 {[%clk 0:01:00]} 38. Rd1 {[%clk 0:00:41]}  Qf3 {[%clk 0:00:57]} 39. Qb2 {[%clk 0:00:39]}  Qe2 {[%clk 0:00:57]} 40. Qe5 {[%clk 0:00:31]}  Re6 {[%clk 0:00:48]} 41. Qd4 {[%clk 0:00:31]}  Rxe3 {[%clk 0:00:41]} 42. Rxd2 {[%clk 0:00:26]}  Qe1+ {[%clk 0:00:41]} 43. Kg2 {[%clk 0:00:27]}  Re4 {[%clk 0:00:36]} 44. Qb2 {[%clk 0:00:20]}  Re6 {[%clk 0:00:35]} 45. Rd4 {[%clk 0:00:17]}  h5 {[%clk 0:00:34]} 46. Rf4 {[%clk 0:00:16]}  Qe5 {[%clk 0:00:33]} 47. Qd2 {[%clk 0:00:15]}  Rd6 {[%clk 0:00:30]} 48. Qc2 {[%clk 0:00:16]}  Re6 {[%clk 0:00:22]} 49. h3 {[%clk 0:00:15]}  Nd7 {[%clk 0:00:21]} 50. Rf3 {[%clk 0:00:08]}  Nc5 {[%clk 0:00:20]} 51. Re3 {[%clk 0:00:07]}  Qf6 {[%clk 0:00:19]} 52. Rf3 {[%clk 0:00:07]}  Qd4 {[%clk 0:00:18]} 53. Rf4 {[%clk 0:00:06]}  Re4 {[%clk 0:00:13]} 54. Rf3 {[%clk 0:00:05]}  Re6 {[%clk 0:00:12]} 55. h4 {[%clk 0:00:06]}  Rf6 {[%clk 0:00:12]} 56. Re3 {[%clk 0:00:06]}  Qd6 {[%clk 0:00:10]} 57. Qe2 {[%clk 0:00:06]}  Qc6+ {[%clk 0:00:11]} 58. Kg1 {[%clk 0:00:06]}  Ne6 {[%clk 0:00:11]} 59. Qb2 {[%clk 0:00:06]}  Nc5 {[%clk 0:00:10]} 60. Qc3 {[%clk 0:00:05]}  Qd6 {[%clk 0:00:09]} 61. Rf3 {[%clk 0:00:05]}  Ne4 {[%clk 0:00:09]} 62. Qb2 {[%clk 0:00:05]}  Qd1+ {[%clk 0:00:09]} 63. Kh2 {[%clk 0:00:03]}  Qxf3 {[%clk 0:00:10]} 64. Qe2 {[%clk 0:00:03]} 0-1


[Site "https://www.chess.com"]

[Event "Titled Tuesday Blitz August 17 2021"]
[White "Sychev, Klementy"]
[Black "Quparadze, Giga"]
[WhiteFideId "4114060"]
[BlackFideId "13602250"]
[WhiteElo "2615"]
[BlackElo "2658"]
[Result "0-1"]
[Round "09"]
[TimeControl "180+1"]
[Date "2021.08.17"]
[WhiteClock "0:00:41"]
[BlackClock "0:00:57"]

1. d4 {[%clk 0:03:00]}  Nf6 {[%clk 0:03:00]} 2. Nf3 {[%clk 0:02:59]}  b6 {[%clk 0:02:59]} 3. Bf4 {[%clk 0:02:58]}  Bb7 {[%clk 0:02:59]} 4. e3 {[%clk 0:02:59]}  g6 {[%clk 0:02:59]} 5. Bd3 {[%clk 0:02:56]}  Bg7 {[%clk 0:03:00]} 6. h3 {[%clk 0:02:55]}  O-O {[%clk 0:03:00]} 7. O-O {[%clk 0:02:56]}  d6 {[%clk 0:03:00]} 8. Nbd2 {[%clk 0:02:56]}  Re8 {[%clk 0:03:00]} 9. Bh2 {[%clk 0:02:56]}  Nbd7 {[%clk 0:03:00]} 10. Re1 {[%clk 0:02:55]}  e5 {[%clk 0:03:00]} 11. dxe5 {[%clk 0:02:42]}  dxe5 {[%clk 0:03:01]} 12. Bc4 {[%clk 0:02:43]}  Qe7 {[%clk 0:02:51]} 13. Qe2 {[%clk 0:02:30]}  a6 {[%clk 0:02:48]} 14. a4 {[%clk 0:02:29]}  h6 {[%clk 0:02:46]} 15. e4 {[%clk 0:02:28]}  Nh5 {[%clk 0:02:44]} 16. Qe3 {[%clk 0:02:25]}  Nf4 {[%clk 0:02:41]} 17. c3 {[%clk 0:02:11]}  g5 {[%clk 0:02:37]} 18. Nb3 {[%clk 0:01:56]}  Nf6 {[%clk 0:02:33]} 19. Nfd2 {[%clk 0:01:55]}  Rad8 {[%clk 0:02:32]} 20. a5 {[%clk 0:01:52]}  b5 {[%clk 0:02:30]} 21. Bf1 {[%clk 0:01:53]}  Rd6 {[%clk 0:02:29]} 22. c4 {[%clk 0:01:28]}  Red8 {[%clk 0:02:26]} 23. cxb5 {[%clk 0:01:15]}  axb5 {[%clk 0:02:27]} 24. Bxb5 {[%clk 0:01:15]}  Ba8 {[%clk 0:01:54]} 25. Qc5 {[%clk 0:01:11]}  Bf8 {[%clk 0:01:53]} 26. Bxf4 {[%clk 0:01:02]}  gxf4 {[%clk 0:01:48]} 27. Nc4 {[%clk 0:01:00]}  Nxe4 {[%clk 0:01:44]} 28. Rxe4 {[%clk 0:00:52]}  Bxe4 {[%clk 0:01:45]} 29. Nxd6 {[%clk 0:00:52]}  cxd6 {[%clk 0:01:45]} 30. Qb6 {[%clk 0:00:50]}  Qg5 {[%clk 0:01:35]} 31. Bf1 {[%clk 0:00:43]}  Bxg2 {[%clk 0:01:16]} 32. h4 {[%clk 0:00:42]}  Qg4 {[%clk 0:01:04]} 33. Qxd8 {[%clk 0:00:41]}  Bd5+ {[%clk 0:01:00]} 34. Kh2 {[%clk 0:00:41]}  Qf3 {[%clk 0:00:57]} 0-1


[Site "https://www.chess.com"]

[Event "Titled Tuesday Blitz August 17 2021"]
[White "Tang, Andrew"]
[Black "Paravyan, David"]
[WhiteFideId "2059630"]
[BlackFideId "4194985"]
[WhiteElo "2588"]
[BlackElo "2562"]
[Result "1/2-1/2"]
[Round "09"]
[TimeControl "180+1"]
[Date "2021.08.17"]
[WhiteClock "0:00:03"]
[BlackClock "0:00:04"]

1. d4 {[%clk 0:03:00]}  f5 {[%clk 0:02:59]} 2. Nf3 {[%clk 0:02:56]}  Nf6 {[%clk 0:02:59]} 3. Bf4 {[%clk 0:02:38]}  d6 {[%clk 0:02:58]} 4. e3 {[%clk 0:02:38]}  h6 {[%clk 0:02:51]} 5. h4 {[%clk 0:02:33]}  g6 {[%clk 0:02:44]} 6. Bc4 {[%clk 0:01:50]}  Bg7 {[%clk 0:02:43]} 7. Nc3 {[%clk 0:01:45]}  e6 {[%clk 0:02:43]} 8. Qe2 {[%clk 0:01:44]}  Qe7 {[%clk 0:02:42]} 9. e4 {[%clk 0:01:39]}  fxe4 {[%clk 0:02:14]} 10. Nxe4 {[%clk 0:01:40]}  Nd5 {[%clk 0:01:38]} 11. Bd2 {[%clk 0:01:09]}  Nc6 {[%clk 0:01:37]} 12. O-O-O {[%clk 0:01:04]}  Bd7 {[%clk 0:01:37]} 13. Rhe1 {[%clk 0:00:36]}  O-O-O {[%clk 0:01:36]} 14. Nc3 {[%clk 0:00:34]}  Qf7 {[%clk 0:01:22]} 15. Kb1 {[%clk 0:00:27]}  Rhe8 {[%clk 0:01:21]} 16. Qd3 {[%clk 0:00:22]}  Ncb4 {[%clk 0:01:17]} 17. Qf1 {[%clk 0:00:21]}  Qf5 {[%clk 0:01:10]} 18. Bb3 {[%clk 0:00:19]}  Nc6 {[%clk 0:00:59]} 19. a3 {[%clk 0:00:18]}  Nxd4 {[%clk 0:00:52]} 20. Nxd4 {[%clk 0:00:17]}  Bxd4 {[%clk 0:00:53]} 21. Nxd5 {[%clk 0:00:11]}  exd5 {[%clk 0:00:53]} 22. Rxe8 {[%clk 0:00:11]}  Rxe8 {[%clk 0:00:52]} 23. Bxh6 {[%clk 0:00:12]}  Bxf2 {[%clk 0:00:50]} 24. Bxd5 {[%clk 0:00:12]}  Bxh4 {[%clk 0:00:44]} 25. Qc4 {[%clk 0:00:11]}  Bd8 {[%clk 0:00:27]} 26. Qb4 {[%clk 0:00:08]}  c6 {[%clk 0:00:21]} 27. Bf3 {[%clk 0:00:07]}  Bc7 {[%clk 0:00:18]} 28. Bg7 {[%clk 0:00:07]}  g5 {[%clk 0:00:16]} 29. Bd4 {[%clk 0:00:07]}  g4 {[%clk 0:00:16]} 30. Bxa7 {[%clk 0:00:02]}  gxf3 {[%clk 0:00:16]} 31. gxf3 {[%clk 0:00:03]}  Qxf3 {[%clk 0:00:16]} 32. Rxd6 {[%clk 0:00:02]}  Re1+ {[%clk 0:00:14]} 33. Qxe1 {[%clk 0:00:01]}  Bxd6 {[%clk 0:00:13]} 34. Bb6 {[%clk 0:00:02]}  Qf7 {[%clk 0:00:08]} 35. Qa5 {[%clk 0:00:02]}  Be6 {[%clk 0:00:06]} 36. Qa8+ {[%clk 0:00:02]}  Bb8 {[%clk 0:00:07]} 37. b3 {[%clk 0:00:02]}  Qf1+ {[%clk 0:00:05]} 38. Kb2 {[%clk 0:00:03]}  Qa6 {[%clk 0:00:04]} 39. Qxa6 {[%clk 0:00:02]}  bxa6 {[%clk 0:00:05]} 40. Bd4 {[%clk 0:00:01]}  Kd7 {[%clk 0:00:06]} 41. Kc3 {[%clk 0:00:02]}  Kd6 {[%clk 0:00:06]} 42. Kb4 {[%clk 0:00:02]}  Kd5 {[%clk 0:00:06]} 43. Bb6 {[%clk 0:00:02]}  Bd6+ {[%clk 0:00:05]} 44. Ka4 {[%clk 0:00:03]}  Bf5 {[%clk 0:00:03]} 45. c4+ {[%clk 0:00:03]}  Ke6 {[%clk 0:00:02]} 46. b4 {[%clk 0:00:04]}  Kd7 {[%clk 0:00:02]} 47. b5 {[%clk 0:00:02]}  axb5+ {[%clk 0:00:02]} 48. cxb5 {[%clk 0:00:03]}  Bc2+ {[%clk 0:00:01]} 49. Ka5 {[%clk 0:00:03]}  c5 {[%clk 0:00:02]} 50. a4 {[%clk 0:00:04]}  c4 {[%clk 0:00:02]} 51. Bd4 {[%clk 0:00:04]}  Bb3 {[%clk 0:00:03]} 52. b6 {[%clk 0:00:04]}  Kc8 {[%clk 0:00:03]} 53. Kb5 {[%clk 0:00:04]}  c3 {[%clk 0:00:02]} 54. Bxc3 {[%clk 0:00:04]}  Bd1 {[%clk 0:00:03]} 55. a5 {[%clk 0:00:03]}  Bf3 {[%clk 0:00:03]} 56. a6 {[%clk 0:00:04]}  Be2+ {[%clk 0:00:03]} 57. Ka5 {[%clk 0:00:04]}  Bf3 {[%clk 0:00:04]} 58. Bd4 {[%clk 0:00:04]}  Be4 {[%clk 0:00:04]} 59. Kb5 {[%clk 0:00:04]}  Bf3 {[%clk 0:00:04]} 60. Be3 {[%clk 0:00:04]}  Be2+ {[%clk 0:00:04]} 61. Ka5 {[%clk 0:00:05]}  Bf3 {[%clk 0:00:04]} 62. Bg5 {[%clk 0:00:05]}  Be4 {[%clk 0:00:04]} 63. Bh4 {[%clk 0:00:05]}  Be5 {[%clk 0:00:05]} 64. Bf2 {[%clk 0:00:06]}  Bc3+ {[%clk 0:00:04]} 65. Ka4 {[%clk 0:00:06]}  Be5 {[%clk 0:00:04]} 66. Kb4 {[%clk 0:00:06]}  Bd6+ {[%clk 0:00:03]} 67. Kc4 {[%clk 0:00:06]}  Bg2 {[%clk 0:00:04]} 68. Kb5 {[%clk 0:00:05]}  Bf4 {[%clk 0:00:04]} 69. Bc5 {[%clk 0:00:05]}  Bf1+ {[%clk 0:00:04]} 70. Ka5 {[%clk 0:00:05]}  Bg2 {[%clk 0:00:04]} 71. Be7 {[%clk 0:00:05]}  Bf3 {[%clk 0:00:04]} 72. Bf6 {[%clk 0:00:06]}  Bd2+ {[%clk 0:00:04]} 73. Ka4 {[%clk 0:00:06]}  Be1 {[%clk 0:00:04]} 74. Kb3 {[%clk 0:00:04]}  Bf2 {[%clk 0:00:04]} 75. b7+ {[%clk 0:00:03]}  Bxb7 {[%clk 0:00:04]} 76. axb7+ {[%clk 0:00:03]}  Kxb7 {[%clk 0:00:04]} 1/2-1/2


[Site "https://www.chess.com"]

[Event "Titled Tuesday Blitz August 17 2021"]
[White "Tikhonov, Viacheslav"]
[Black "Nguyen, Thi Minh Oanh"]
[WhiteFideId "44196407"]
[BlackFideId "12404080"]
[WhiteElo "1773"]
[BlackElo "1825"]
[Result "1-0"]
[Round "09"]
[TimeControl "180+1"]
[Date "2021.08.18"]
[WhiteClock "0:00:03"]
[BlackClock "0:00:13"]

1. e4 {[%clk 0:03:00]}  c5 {[%clk 0:02:54]} 2. Nf3 {[%clk 0:03:00]}  e6 {[%clk 0:02:47]} 3. b3 {[%clk 0:03:00]}  d6 {[%clk 0:02:25]} 4. Bb2 {[%clk 0:02:58]}  Qc7 {[%clk 0:02:24]} 5. d4 {[%clk 0:02:48]}  cxd4 {[%clk 0:02:24]} 6. Nxd4 {[%clk 0:02:49]}  Nf6 {[%clk 0:02:24]} 7. Bd3 {[%clk 0:02:47]}  a6 {[%clk 0:02:24]} 8. c4 {[%clk 0:02:44]}  Be7 {[%clk 0:02:22]} 9. O-O {[%clk 0:02:44]}  O-O {[%clk 0:02:23]} 10. Kh1 {[%clk 0:02:42]}  b6 {[%clk 0:02:23]} 11. Nc3 {[%clk 0:02:37]}  Bb7 {[%clk 0:02:23]} 12. f4 {[%clk 0:02:33]}  Nbd7 {[%clk 0:02:23]} 13. Rc1 {[%clk 0:02:29]}  Rac8 {[%clk 0:02:21]} 14. Qe1 {[%clk 0:02:17]}  Rfe8 {[%clk 0:02:16]} 15. Bb1 {[%clk 0:02:11]}  Qb8 {[%clk 0:02:14]} 16. Rf3 {[%clk 0:02:05]}  d5 {[%clk 0:01:34]} 17. cxd5 {[%clk 0:01:29]}  exd5 {[%clk 0:01:33]} 18. e5 {[%clk 0:01:28]}  Bc5 {[%clk 0:01:31]} 19. Nf5 {[%clk 0:01:11]}  d4 {[%clk 0:01:20]} 20. Ne4 {[%clk 0:01:11]}  Nxe4 {[%clk 0:01:18]} 21. Bxe4 {[%clk 0:01:12]}  Bxe4 {[%clk 0:01:14]} 22. Qxe4 {[%clk 0:01:13]}  Nf6 {[%clk 0:01:08]} 23. Qd3 {[%clk 0:01:07]}  Nd5 {[%clk 0:01:01]} 24. Rg3 {[%clk 0:00:42]}  g6 {[%clk 0:00:45]} 25. Qf3 {[%clk 0:00:41]}  Ne3 {[%clk 0:00:25]} 26. Nxe3 {[%clk 0:00:26]}  dxe3 {[%clk 0:00:25]} 27. h3 {[%clk 0:00:17]}  Red8 {[%clk 0:00:23]} 28. f5 {[%clk 0:00:16]}  Bd4 {[%clk 0:00:21]} 29. Rxc8 {[%clk 0:00:13]}  Qxc8 {[%clk 0:00:22]} 30. Bxd4 {[%clk 0:00:12]}  Rxd4 {[%clk 0:00:17]} 31. fxg6 {[%clk 0:00:12]}  hxg6 {[%clk 0:00:14]} 32. Qxe3 {[%clk 0:00:08]}  Rd1+ {[%clk 0:00:15]} 33. Kh2 {[%clk 0:00:08]}  Qe6 {[%clk 0:00:15]} 34. Rf3 {[%clk 0:00:06]}  Rd5 {[%clk 0:00:15]} 35. Rf6 {[%clk 0:00:05]}  Qe7 {[%clk 0:00:12]} 36. Rxb6 {[%clk 0:00:04]}  Rxe5 {[%clk 0:00:13]} 37. Qg3 {[%clk 0:00:03]}  Ra5 {[%clk 0:00:12]} 38. Rb8+ {[%clk 0:00:03]}  Kg7 {[%clk 0:00:12]} 39. Qc3+ {[%clk 0:00:04]}  Kh7 {[%clk 0:00:13]} 40. Qh8# {[%clk 0:00:03]} 1-0


[Site "https://www.chess.com"]

[Event "Titled Tuesday Blitz August 17 2021"]
[White "Yaran, Siar"]
[Black "Eynullayev, Atilla"]
[WhiteFideId "6323006"]
[BlackFideId "13413570"]
[WhiteElo "1977"]
[BlackElo "1997"]
[Result "1-0"]
[Round "09"]
[TimeControl "180+1"]
[Date "2021.08.17"]
[WhiteClock "0:01:31"]
[BlackClock "0:01:46"]

1. e4 {[%clk 0:03:00]}  c5 {[%clk 0:02:59]} 2. Nf3 {[%clk 0:03:00]}  e6 {[%clk 0:02:59]} 3. Nc3 {[%clk 0:02:59]}  Nc6 {[%clk 0:02:59]} 4. d4 {[%clk 0:02:59]}  cxd4 {[%clk 0:02:59]} 5. Nxd4 {[%clk 0:02:59]}  a6 {[%clk 0:03:00]} 6. a3 {[%clk 0:02:56]}  Nf6 {[%clk 0:02:56]} 7. Be2 {[%clk 0:02:55]}  Qc7 {[%clk 0:02:52]} 8. O-O {[%clk 0:02:53]}  Be7 {[%clk 0:02:52]} 9. Be3 {[%clk 0:02:53]}  O-O {[%clk 0:02:51]} 10. f4 {[%clk 0:02:52]}  d6 {[%clk 0:02:52]} 11. Qe1 {[%clk 0:02:51]}  Nxd4 {[%clk 0:02:48]} 12. Bxd4 {[%clk 0:02:50]}  e5 {[%clk 0:02:49]} 13. fxe5 {[%clk 0:02:50]}  dxe5 {[%clk 0:02:50]} 14. Qg3 {[%clk 0:02:50]}  Bc5 {[%clk 0:02:50]} 15. Bxc5 {[%clk 0:02:44]}  Qxc5+ {[%clk 0:02:51]} 16. Kh1 {[%clk 0:02:45]}  Kh8 {[%clk 0:02:52]} 17. Qh4 {[%clk 0:02:26]}  Qc6 {[%clk 0:02:37]} 18. Nd5 {[%clk 0:02:05]}  Nxd5 {[%clk 0:02:30]} 19. exd5 {[%clk 0:02:06]}  Qxd5 {[%clk 0:02:29]} 20. Bc4 {[%clk 0:02:05]}  Qd7 {[%clk 0:02:13]} 21. Rad1 {[%clk 0:01:42]}  Qc7 {[%clk 0:02:11]} 22. Rxf7 {[%clk 0:01:38]}  Bd7 {[%clk 0:01:46]} 23. Rdxd7 {[%clk 0:01:31]} 1-0


[Site "https://www.chess.com"]

[Event "Titled Tuesday Blitz August 17 2021"]
[White "Zhuravleva, Olga"]
[Black "Agibileg, Uurtsaikh"]
[WhiteFideId "4145933"]
[BlackFideId "4901606"]
[WhiteElo "2119"]
[BlackElo "2150"]
[Result "0-1"]
[Round "09"]
[TimeControl "180+1"]
[Date "2021.08.17"]
[WhiteClock "0:00:01"]
[BlackClock "0:00:54"]

1. e4 {[%clk 0:03:00]}  c5 {[%clk 0:02:59]} 2. Nf3 {[%clk 0:03:00]}  e6 {[%clk 0:02:59]} 3. d4 {[%clk 0:03:00]}  cxd4 {[%clk 0:03:00]} 4. Nxd4 {[%clk 0:03:00]}  Nc6 {[%clk 0:03:00]} 5. Nc3 {[%clk 0:03:01]}  Qc7 {[%clk 0:02:59]} 6. f4 {[%clk 0:02:59]}  Bb4 {[%clk 0:02:56]} 7. Nxc6 {[%clk 0:02:58]}  bxc6 {[%clk 0:02:56]} 8. Qf3 {[%clk 0:02:58]}  d5 {[%clk 0:02:55]} 9. Bd2 {[%clk 0:02:53]}  Nf6 {[%clk 0:02:50]} 10. e5 {[%clk 0:02:51]}  Nd7 {[%clk 0:02:41]} 11. Bd3 {[%clk 0:02:47]}  Bb7 {[%clk 0:02:37]} 12. O-O {[%clk 0:02:44]}  O-O {[%clk 0:02:35]} 13. Qh3 {[%clk 0:02:33]}  g6 {[%clk 0:02:31]} 14. Rae1 {[%clk 0:02:26]}  c5 {[%clk 0:02:22]} 15. f5 {[%clk 0:02:18]}  exf5 {[%clk 0:02:18]} 16. Bh6 {[%clk 0:02:16]}  Rfe8 {[%clk 0:02:15]} 17. Bf4 {[%clk 0:01:23]}  Qb6 {[%clk 0:01:52]} 18. Kh1 {[%clk 0:01:20]}  c4 {[%clk 0:01:45]} 19. Bxf5 {[%clk 0:01:17]}  Nf8 {[%clk 0:01:41]} 20. Bg4 {[%clk 0:01:11]}  d4 {[%clk 0:01:37]} 21. Ne4 {[%clk 0:01:08]}  Bxe1 {[%clk 0:01:27]} 22. Nf6+ {[%clk 0:01:07]}  Kh8 {[%clk 0:01:26]} 23. Bh6 {[%clk 0:00:43]}  Rxe5 {[%clk 0:01:24]} 24. Bxf8 {[%clk 0:00:42]}  Qxf6 {[%clk 0:01:24]} 25. Rxf6 {[%clk 0:00:34]}  Rxf8 {[%clk 0:01:25]} 26. Bf3 {[%clk 0:00:25]}  Bb4 {[%clk 0:01:13]} 27. g4 {[%clk 0:00:21]}  Be7 {[%clk 0:01:06]} 28. Rf4 {[%clk 0:00:18]}  Bg5 {[%clk 0:01:04]} 29. Bxb7 {[%clk 0:00:14]}  Bxf4 {[%clk 0:01:03]} 30. Qf3 {[%clk 0:00:15]}  g5 {[%clk 0:00:58]} 31. Be4 {[%clk 0:00:13]}  Rfe8 {[%clk 0:00:57]} 32. Bf5 {[%clk 0:00:11]}  Re1+ {[%clk 0:00:57]} 33. Kg2 {[%clk 0:00:11]}  R8e2+ {[%clk 0:00:58]} 34. Qf2 {[%clk 0:00:01]}  Rxf2+ {[%clk 0:00:54]} 0-1


[Site "https://www.chess.com"]